bitfinex/quotes_ETHUSD_20250217
["timestamp","ask_amount","ask_price","bid_price","bid_amount"]
[1739750739095,1.28482571,2666.0,2665.6,3.7514]
[1739750739291,0.28,2665.9,2665.7,3.75128]
[1739750739686,1.0722,2665.9,2665.5,3.7516]
[1739750739914,1.11909306,2665.9,2665.6,3.75147]
[1739750740398,1.11909306,2665.9,2665.6,7.50294]
[1739750740600,1.0722,2665.9,2665.8,3.75121]
[1739750740800,1.6222,2665.9,2665.8,3.75121]
[1739750740980,1.6222,2665.9,2665.7,3.75134]
[1739750741511,0.28,2665.9,2665.8,3.75121]
[1739750741713,1.50940564,2666.4,2666.0,3.75089]
[1739750741913,0.28,2666.3,2666.1,3.75072]
[1739750742219,0.55,2666.2,2666.0,3.75089]
[1739750742513,0.55,2666.2,2666.0,7.50175]
[1739750742716,6.1115,2667.0,2666.5,3.75023]
[1739750743013,1.49876786,2666.6,2666.5,3.75023]
[1739750743405,0.7715,2667.0,2666.5,0.828359]
[1739750743716,0.28,2666.9,2666.8,3.74981]
[1739750744121,0.7715,2667.4,2667.0,3.74941]
[1739750744313,0.7715,2667.4,2667.2,3.74925]
[1739750744509,0.42299165,2667.3,2667.2,3.74925]
[1739750744919,0.42299165,2667.3,2667.1,3.74938]
[1739750745121,0.42299165,2667.3,2667.1,3.74927]
[1739750745322,0.42299165,2667.3,2667.2,3.74925]
[1739750745803,0.14299165,2667.3,2667.2,3.74925]
[1739750746004,0.28,2667.3,2667.2,3.74925]
[1739750746206,0.42445662,2667.3,2667.2,3.74925]
[1739750746739,0.28,2667.3,2667.2,3.74925]
[1739750747041,0.42457862,2667.3,2667.2,3.74925]
[1739750748718,0.42457862,2667.3,2667.1,3.74927]
[1739750749659,0.55,2667.2,2666.9,3.74961]
[1739750749953,0.7715,2667.1,2666.9,3.74961]
[1739750750177,0.7715,2667.1,2666.7,3.74986]
[1739750750388,0.55,2667.0,2666.6,3.74999]
[1739750750569,0.55,2667.0,2666.5,3.75015]
[1739750750766,0.55,2667.0,2666.6,3.75008]
[1739750751082,0.55,2666.8,2666.5,3.75015]
[1739750751281,0.55,2666.6,2666.1,3.75076]
[1739750751563,0.55,2666.6,2666.0,3.65420036]
[1739750751564,1.0515,2666.5,2666.3,3.75039]
[1739750751727,0.97450653,2666.5,2666.4,3.75037]
[1739750751936,0.83,2666.5,2666.4,3.75037]
[1739750752676,0.28,2666.5,2666.4,3.75037]
[1739750753030,0.42450653,2666.5,2666.4,3.75037]
[1739750754943,0.14450653,2666.5,2666.4,5.283446]
[1739750755160,0.28,2666.9,2666.4,1.533076]
[1739750755365,0.14450653,2666.8,2666.7,7.49974]
[1739750755585,0.28,2666.9,2666.7,3.74986]
[1739750755906,0.28,2666.9,2666.8,3.74981]
[1739750756586,0.7726,2667.9,2667.4,3.74893]
[1739750756784,0.28,2667.8,2667.4,3.74893]
[1739750757961,0.55,2667.7,2667.3,3.74909]
[1739750758162,0.55,2667.7,2667.4,3.74893]
[1739750758568,0.55,2667.7,2667.5,3.74879]
[1739750758901,0.55,2667.7,2667.6,3.74868]
[1739750759388,0.55,2667.7,2667.5,3.74879]
[1739750760012,0.55,2667.7,2667.6,3.74868]
[1739750760226,0.7726,2667.9,2667.8,3.7484]
[1739750760364,1.0526,2667.9,2667.8,3.7484]
[1739750760565,1.0526,2667.9,2667.7,3.74853]
[1739750760760,0.7726,2667.9,2667.7,3.74853]
[1739750761061,0.83,2667.8,2667.7,3.74853]
[1739750761265,1.21808687,2668.3,2667.7,3.74853]
[1739750761266,1.21808687,2668.3,2667.7,4.5806]
[1739750761509,1.21808687,2668.3,2668.2,3.74784]
[1739750761697,2.04808687,2668.3,2668.2,3.74784]
[1739750761865,1.49808687,2668.3,2668.2,3.74784]
[1739750762468,1.6427819,2668.3,2668.2,3.74784]
[1739750762880,1.6427819,2668.3,2668.1,3.74798]
[1739750763094,1.88432009,2668.3,2667.6,3.74868]
[1739750763313,0.59685419,2668.2,2667.8,3.74831]
[1739750763486,0.55,2668.0,2667.6,3.74859]
[1739750763899,0.55,2668.0,2667.7,3.74853]
[1739750764093,0.55,2667.8,2667.7,3.74853]
[1739750764414,0.55,2667.8,2667.6,3.74859]
[1739750764600,0.69537693,2667.8,2667.7,3.74854]
[1739750765001,0.42537693,2667.8,2667.7,3.74854]
[1739750765195,0.42537693,2667.8,2667.7,4.78537304]
[1739750765526,0.14537693,2667.8,2667.7,5.60897304]
[1739750765887,0.28,2668.0,2667.9,3.74826]
[1739750766089,0.28,2668.0,2667.9,6.74826]
[1739750771590,1.0721,2668.0,2667.8,3.74839]
[1739750771812,0.55,2667.9,2667.6,3.74859]
[1739750772096,0.5968561,2667.9,2667.6,3.74859]
[1739750772295,0.5968561,2667.9,2667.4,3.74889]
[1739750772600,0.55,2667.7,2667.2,3.74915]
[1739750772800,0.55,2667.5,2667.2,3.74915]
[1739750773017,0.55,2667.4,2667.3,3.7491]
[1739750773194,0.69559865,2667.4,2667.3,3.7491]
[1739750773526,8.65e-06,2667.4,2667.3,11.79582651]
[1739750773725,0.13449609,2667.4,2667.3,8.262025]
[1739750774032,0.55,2667.8,2667.6,3.7486]
[1739750774610,0.55,2667.8,2667.7,3.74854]
[1739750774924,5.34,2667.9,2667.8,3.7484]
[1739750775131,0.28,2668.1,2668.0,3.74812]
[1739750775425,0.28,2668.1,2668.0,6.74812]
[1739750776522,0.28,2668.1,2668.0,3.0]
[1739750776727,0.55,2668.0,2667.8,3.74827]
[1739750776926,0.55,2668.0,2667.9,3.74826]
[1739750777089,0.59685392,2668.0,2667.7,3.74848]
[1739750777294,0.59685716,2668.0,2667.6,3.74858]
[1739750777496,0.55,2668.0,2667.6,3.74858]
[1739750777716,0.04685989,2667.9,2667.6,3.74858]
[1739750777914,0.55,2667.7,2667.4,3.74887]
[1739750778226,0.5968613,2667.7,2667.2,3.74911]
[1739750778432,0.5968613,2667.7,2667.3,3.74903]
[1739750778642,0.55,2667.7,2667.4,3.74894]
[1739750778788,0.55,2667.7,2667.5,3.74881]
[1739750778992,0.55,2667.7,2667.6,3.74868]
[1739750779412,6.4121,2668.1,2667.7,3.74854]
[1739750779615,0.28,2668.0,2667.9,3.74816]
[1739750779806,0.28,2668.0,2667.9,6.74816]
[1739750780636,1.21808687,2668.3,2668.2,3.74784]
[1739750780802,2.04808687,2668.3,2668.2,3.74784]
[1739750781004,2.1827721,2668.3,2668.2,3.74784]
[1739750781508,2.1827721,2668.3,2668.1,3.7479]
[1739750781704,2.1827721,2668.3,2668.2,3.74784]
[1739750783592,1.3527721,2668.3,2668.2,3.74784]
[1739750783794,1.6327721,2668.3,2668.2,4.497414]
[1739750784109,1.49808687,2668.3,2668.2,4.497414]
[1739750784927,0.28,2668.3,2668.2,4.497414]
[1739750785436,0.28,2668.3,2668.2,3.74784]
[1739750787428,0.41483541,2668.3,2668.2,3.74784]
[1739750787630,0.13483541,2668.3,2668.2,3.74784]
[1739750787936,0.13483541,2668.3,2668.2,7.56734]
[1739750789415,1.0557,2669.4,2669.3,3.7463]
[1739750789614,0.28,2669.4,2669.3,3.7463]
[1739750789838,0.41009248,2669.4,2669.3,3.7463]
[1739750790014,0.41009248,2669.4,2669.2,3.74642]
[1739750790331,0.41009248,2669.4,2669.2,3.74634]
[1739750790635,0.41009248,2669.4,2669.3,3.7463]
[1739750790930,0.41009248,2669.4,2669.1,6.74646]
[1739750791297,0.41009248,2669.4,2669.2,3.74642]
[1739750791838,0.28,2669.3,2669.2,3.74636]
[1739750793203,0.28,2669.3,2669.1,6.74655]
[1739750794042,0.28,2669.3,2669.2,3.74644]
[1739750795027,0.1446657,2669.5,2669.3,3.74621]
[1739750795236,0.1446657,2669.5,2669.2,3.74644]
[1739750795237,0.28,2669.3,2669.2,3.74644]
[1739750795905,0.55,2669.2,2669.1,3.0]
[1739750796103,0.55,2669.0,2668.7,3.74705]
[1739750796337,0.55,2669.0,2668.8,3.74691]
[1739750796543,0.13038709,2668.9,2668.8,3.74691]
[1739750797038,0.13038709,2668.9,2668.6,3.74714]
[1739750797242,0.55,2668.8,2668.3,3.74768]
[1739750797443,0.55,2668.6,2668.3,3.74762]
[1739750797607,0.28,2668.5,2668.4,3.0]
[1739750800040,0.28,2668.5,2668.1,3.74788]
[1739750800222,0.32684467,2668.5,2668.1,3.74788]
[1739750800417,0.68115454,2668.4,2668.3,3.0]
[1739750800622,0.68115454,2668.4,2668.3,6.7477]
[1739750800821,0.13115454,2668.4,2668.3,7.5596]
[1739750801020,5.34,2669.0,2668.3,4.861453]
[1739750801220,0.55,2668.9,2668.4,3.74751]
[1739750801408,0.12120472,2668.8,2668.4,3.74751]
[1739750801611,0.55,2668.7,2668.4,3.74751]
[1739750801939,0.55,2668.7,2668.3,0.8119]
[1739750802111,0.12120472,2668.6,2668.4,3.74753]
[1739750802311,0.55,2668.7,2668.4,3.74749]
[1739750802547,0.12120472,2668.5,2668.4,3.74756]
[1739750802733,0.55,2668.7,2668.4,3.74756]
[1739750803135,0.55,2668.7,2668.4,3.74747]
[1739750803331,0.55,2668.7,2668.5,3.74732]
[1739750803734,0.12120472,2668.6,2668.5,3.74732]
[1739750804355,0.12120472,2668.6,2668.2,3.74772]
[1739750804555,0.5968457,2668.5,2668.0,3.74807]
[1739750804761,0.5968457,2668.5,2667.8,0.8105]
[1739750804762,0.55,2668.3,2667.8,3.74827]
[1739750805046,0.55,2668.1,2667.7,3.74854]
[1739750805266,0.04685523,2668.0,2667.7,3.74854]
[1739750805419,0.55,2668.1,2667.9,3.74819]
[1739750805614,0.04685421,2669.1,2668.0,0.8105]
[1739750805821,0.792,2668.7,2668.6,3.74728]
[1739750806159,0.28,2668.7,2668.6,3.74722]
[1739750806847,0.83,2668.7,2668.6,3.74722]
[1739750807147,0.83,2668.7,2668.5,3.7474]
[1739750807350,0.83,2668.7,2668.5,3.74734]
[1739750808248,0.83,2668.7,2668.5,3.74733]
[1739750809051,0.83,2668.7,2667.9,0.374819]
[1739750809052,0.83,2668.6,2667.7,0.8105]
[1739750809229,0.55,2668.4,2667.8,3.74832]
[1739750809430,0.95567869,2668.3,2667.8,3.74832]
[1739750809661,0.90882699,2668.3,2668.0,3.74805]
[1739750809837,0.28,2668.3,2667.9,4.5587]
[1739750810040,0.28,2668.3,2668.2,6.74784]
[1739750810964,0.792,2669.2,2668.8,3.747]
[1739750811352,0.39794447,2669.1,2668.8,3.747]
[1739750811666,0.281,2669.1,2669.0,3.74672]
[1739750814063,0.55,2669.4,2668.9,3.74685]
[1739750814270,0.831,2669.2,2669.1,3.74654]
[1739750814448,0.831,2669.2,2668.9,3.74685]
[1739750814763,0.11719615,2669.1,2668.9,3.74677]
[1739750814959,0.831,2669.2,2668.9,3.74677]
[1739750815338,0.11719615,2669.1,2668.9,7.49352]
[1739750815562,0.831,2669.2,2668.9,7.49352]
[1739750815763,0.11719615,2669.0,2668.9,6.74675]
[1739750815959,0.831,2669.2,2668.9,6.74675]
[1739750816159,0.11719615,2669.0,2668.9,6.74675]
[1739750816468,0.831,2669.2,2668.9,6.74675]
[1739750816863,0.11719615,2669.1,2668.9,10.49352]
[1739750817168,0.831,2669.2,2668.9,10.49352]
[1739750817476,0.1446657,2669.5,2668.9,6.74675]
[1739750817477,0.11719615,2669.0,2668.9,6.74675]
[1739750817635,0.28,2669.1,2669.0,3.74662]
[1739750817836,0.28,2669.1,2668.9,4.049373]
[1739750818037,0.28,2669.1,2668.9,6.74679]
[1739750818675,0.28,2669.1,2668.9,6.74684]
[1739750818971,0.28,2669.1,2668.9,3.0]
[1739750819474,0.28,2669.1,2668.9,6.74685]
[1739750820347,0.28,2669.1,2668.9,6.74679]
[1739750820547,0.28,2669.1,2668.9,7.421469]
[1739750821265,0.28,2669.1,2668.9,6.74679]
[1739750821579,1.0685,2669.1,2668.9,6.74679]
[1739750821776,1.0685,2669.1,2668.9,6.74676]
[1739750822157,1.0685,2669.1,2668.7,3.74703]
[1739750822381,0.59683494,2669.0,2668.5,3.74736]
[1739750822681,0.55,2669.0,2668.6,3.0]
[1739750822974,0.55,2669.0,2668.7,3.74713]
[1739750823182,0.55,2669.0,2668.8,3.74693]
[1739750825086,0.55,2669.0,2668.9,3.74686]
[1739750825382,0.28,2669.1,2669.0,3.74672]
[1739750825585,0.28,2669.1,2669.0,7.90824278]
[1739750825752,0.28,2669.1,2669.0,7.870778]
[1739750825952,0.28,2669.1,2669.0,8.673878]
[1739750826274,0.1446657,2669.5,2669.4,3.74616]
[1739750826476,0.26178917,2669.5,2669.4,7.586721]
[1739750826782,0.1446657,2669.5,2669.4,8.6825601]
[1739750830690,5.7e-06,2669.5,2669.4,8.6825601]
[1739750834294,5.7e-06,2669.5,2669.4,8.86773486]
[1739750835400,5.7e-06,2669.5,2669.4,17.73773486]
[1739750837519,2.00678622,2670.9,2669.6,0.7555]
[1739750837833,0.28,2670.6,2670.5,3.74461]
[1739750838201,0.28,2670.6,2670.5,6.74461]
[1739750841469,1.21708622,2670.9,2670.6,3.0]
[1739750841679,0.83,2670.8,2670.4,3.74471]
[1739750842114,0.83,2670.8,2670.5,3.0]
[1739750843015,0.59680483,2670.7,2670.1,3.74517]
[1739750843218,0.7897,2670.6,2670.1,3.74517]
[1739750843400,0.90719663,2670.6,2670.1,3.74517]
[1739750843605,0.90719663,2670.6,2669.8,0.7555]
[1739750843606,0.7897,2670.6,2670.2,3.74497]
[1739750843815,0.7897,2670.6,2670.5,3.74461]
[1739750844117,2.00678622,2670.9,2670.8,3.74419]
[1739750844313,0.55,2670.8,2670.7,3.74432]
[1739750844518,2.00678622,2670.9,2670.7,3.74432]
[1739750844717,0.28,2670.8,2670.7,3.74432]
[1739750845924,0.28,2670.8,2670.6,3.74446]
[1739750846113,1.10548049,2670.8,2670.5,3.0]
[1739750846413,1.05867862,2670.8,2670.5,3.0]
[1739750846816,0.7907,2670.6,2669.9,3.74545]
[1739750847022,0.55,2670.5,2670.0,3.74523]
[1739750847238,0.55,2670.5,2670.1,3.74506]
[1739750847843,0.7907,2670.2,2669.6,3.74583]
[1739750847989,0.55,2670.1,2669.7,3.74565]
[1739750848345,0.55,2670.1,2669.6,7.4916]
[1739750848346,0.28,2670.0,2669.6,7.4916]
[1739750848622,0.28,2669.9,2669.8,6.74558]
[1739750848777,0.28,2669.9,2669.8,3.0]
[1739750849392,0.28,2669.9,2669.8,6.74559]
[1739750849595,0.28,2670.1,2669.9,3.0]
[1739750849816,0.7907,2670.7,2669.9,3.0]
[1739750850018,0.28,2670.6,2670.5,3.74451]
[1739750850229,1.21708622,2670.9,2670.7,3.74425]
[1739750850230,2.00778622,2670.9,2670.7,3.74425]
[1739750850385,0.28,2670.8,2670.7,6.74425]
[1739750850889,2.28778622,2670.9,2670.7,6.74425]
[1739750851286,2.28778622,2670.9,2670.7,6.74424]
[1739750851592,2.28778622,2670.9,2670.8,3.74419]
[1739750851900,2.28778622,2670.9,2670.7,6.74432]
[1739750852421,2.28778622,2670.9,2670.7,6.74425]
[1739750852726,0.55,2670.8,2670.3,3.74478]
[1739750853025,0.55,2670.4,2670.0,3.74523]
[1739750853410,0.55,2670.4,2670.1,3.74507]
[1739750853610,0.55,2670.4,2670.0,3.0]
[1739750853811,0.59681229,2670.4,2669.6,0.7901]
[1739750853985,0.7907,2670.3,2669.7,3.74562]
[1739750854190,0.55,2670.2,2669.7,3.7456]
[1739750854418,0.28,2670.1,2669.8,3.0]
[1739750854723,0.7907,2670.3,2669.8,1.049124]
[1739750854900,0.28,2670.2,2670.1,3.74517]
[1739750855106,0.28,2670.2,2670.1,6.74517]
[1739750855820,0.28,2670.2,2670.1,3.0]
[1739750855996,0.28,2670.2,2669.9,3.74538]
[1739750856800,0.28,2670.2,2670.0,3.74517]
[1739750857327,0.28,2670.2,2670.0,7.49041]
[1739750857530,0.28,2670.2,2670.0,3.74517]
[1739750857824,0.28,2670.2,2670.1,3.74517]
[1739750859328,0.28,2670.2,2670.1,4.494204]
[1739750859632,0.28,2670.2,2670.1,7.494204]
[1739750860752,0.7907,2670.5,2670.4,3.74475]
[1739750860753,1.3407,2670.5,2670.4,3.74475]
[1739750860945,1.6207,2670.5,2670.4,3.74475]
[1739750861143,1.6207,2670.5,2670.2,3.74491]
[1739750861537,1.6207,2670.5,2670.3,3.74488]
[1739750862223,1.6207,2670.5,2670.2,3.0]
[1739750862425,1.6207,2670.5,2670.3,3.74479]
[1739750863162,1.6207,2670.5,2670.4,3.74475]
[1739750863529,0.83,2670.5,2670.3,3.74479]
[1739750864063,0.83,2670.5,2670.2,3.0]
[1739750864428,0.83,2670.5,2670.3,3.74489]
[1739750864829,0.55,2670.5,2670.4,3.74475]
[1739750865042,0.83,2670.5,2670.3,3.74489]
[1739750865867,0.83,2670.5,2670.4,3.74475]
[1739750867168,1.3474,2670.4,2669.7,3.7457]
[1739750867463,0.7974,2671.0,2669.8,6.98345825]
[1739750867665,0.28,2670.9,2670.5,3.74453]
[1739750867865,0.55,2670.8,2670.5,3.74453]
[1739750868248,0.55,2670.6,2670.5,3.74453]
[1739750868564,0.55,2670.8,2670.4,3.74475]
[1739750869168,0.55,2670.8,2670.2,6.74493]
[1739750869331,0.55,2670.8,2670.2,3.0]
[1739750869532,0.7974,2670.5,2670.2,3.0]
[1739750870060,0.7974,2670.5,2670.2,6.745]
[1739750870261,0.11720061,2670.4,2670.2,6.745]
[1739750871373,0.11720061,2670.4,2670.3,3.74489]
[1739750872088,0.11720061,2670.4,2670.2,6.74494]
[1739750872384,0.11720061,2670.4,2670.3,3.74489]
[1739750878610,0.28,2670.4,2670.3,3.74489]
[1739750878811,0.28,2670.4,2670.3,4.793873]
[1739750879024,0.28,2670.4,2670.3,3.74489]
[1739750884405,1.0731,2670.4,2670.3,3.74489]
[1739750887402,1.0731,2670.4,2669.6,0.817]
[1739750887403,1.6231,2670.4,2669.6,0.817]
[1739750887581,0.59681635,2670.3,2669.9,3.74537]
[1739750887780,0.71412306,2670.3,2669.9,3.74537]
[1739750887987,0.66730671,2670.3,2670.2,3.74503]
[1739750888580,0.11730671,2670.3,2670.2,3.74503]
[1739750888778,0.28,2670.3,2670.2,7.494048]
[1739750889077,5.34,2670.8,2670.5,3.74461]
[1739750889295,0.28,2670.7,2670.6,3.74439]
[1739750889533,0.39712238,2670.7,2670.6,3.74439]
[1739750890414,0.28,2670.7,2670.6,3.74439]
[1739750890707,0.3972676,2670.7,2670.6,3.74439]
[1739750891211,0.7931,2670.9,2670.3,3.0]
[1739750891378,0.11727319,2670.7,2670.6,6.74447]
[1739750891730,0.83,2671.0,2670.6,6.74446]
[1739750892009,0.11747427,2670.9,2670.6,6.74446]
[1739750892375,0.11747427,2670.9,2670.7,3.74432]
[1739750892998,0.11747427,2670.9,2670.7,3.74426]
[1739750893206,0.11747427,2670.9,2670.8,0.674426]
[1739750893408,0.11747427,2670.9,2670.8,4.418616]
[1739750895619,0.28,2670.9,2670.8,4.418616]
[1739750895821,0.39779257,2670.9,2670.8,4.418616]
[1739750896026,0.39779257,2670.9,2670.8,11.11061432]
[1739750896202,0.28,2670.9,2670.8,11.11061432]
[1739750896728,0.28,2670.9,2670.8,8.244416]
[1739750897424,1.21670711,2671.1,2670.9,3.0]
[1739750897623,1.49670711,2671.1,2671.0,7.4939326]
[1739750901504,1.49670711,2671.1,2671.0,6.74391]
[1739750901696,1.49670711,2671.1,2671.0,1.048783]
[1739750901928,1.49670711,2671.1,2670.9,3.74393]
[1739750902244,1.61460017,2671.1,2671.0,3.74391]
[1739750902404,1.49670711,2671.1,2671.0,3.74391]
[1739750902905,1.49670711,2671.1,2670.9,3.74393]
[1739750903106,1.49670711,2671.1,2670.9,7.4879]
[1739750903437,0.8114,2670.9,2670.5,3.74453]
[1739750903741,0.55,2670.8,2670.6,3.74438]
[1739750904046,0.59680557,2670.8,2670.5,3.74453]
[1739750904335,0.8114,2670.9,2670.2,0.749018]
[1739750904336,0.8114,2670.9,2670.7,3.74431]
[1739750904542,0.11787072,2670.8,2670.7,3.74431]
[1739750905207,0.11787072,2670.8,2670.6,3.74445]
[1739750905843,0.66787072,2670.8,2670.5,3.74456]
[1739750906142,0.55,2670.7,2670.4,3.74474]
[1739750906300,0.55,2670.8,2670.4,3.74474]
[1739750906505,0.8114,2670.9,2670.6,3.74446]
[1739750906707,0.55,2670.8,2670.6,3.74446]
[1739750906906,0.11782605,2670.7,2670.6,3.74446]
[1739750907108,0.55,2670.8,2670.5,3.74461]
[1739750907551,0.11774788,2670.7,2670.5,3.74461]
[1739750907845,0.55,2670.8,2670.5,3.74461]
[1739750908214,0.11774229,2670.7,2670.5,3.74461]
[1739750908426,0.55,2670.8,2670.1,3.7557]
[1739750908427,0.55,2670.8,2670.7,3.74433]
[1739750908742,0.55,2670.8,2670.5,3.74461]
[1739750908949,0.59680741,2670.8,2670.5,3.74461]
[1739750909417,0.55,2670.8,2670.5,3.74461]
[1739750909750,0.04680741,2670.7,2670.2,3.745]
[1739750910049,0.55,2670.5,2670.4,3.74475]
[1739750911328,1.3257,2671.0,2670.5,3.74457]
[1739750911539,0.55,2670.8,2670.5,3.74457]
[1739750911935,0.55,2670.8,2670.2,3.74493]
[1739750912111,0.55,2670.6,2670.3,3.74483]
[1739750912316,0.59680983,2670.6,2670.3,3.74483]
[1739750912516,0.55,2670.6,2670.3,3.74483]
[1739750912749,0.55,2670.6,2670.5,3.74461]
[1739750913151,0.55,2670.6,2670.3,3.74483]
[1739750914259,0.55,2670.6,2670.5,3.74461]
[1739750916451,0.55,2670.6,2670.4,3.74468]
[1739750916660,0.59680957,2670.6,2670.4,3.74468]
[1739750916820,0.55,2670.6,2670.4,3.74468]
[1739750917020,0.59680957,2670.6,2670.2,3.74492]
[1739750917442,0.59680957,2670.6,2670.1,3.74516]
[1739750917644,0.55,2670.4,2669.8,3.74556]
[1739750917842,0.7757,2670.2,2669.7,3.74566]
[1739750918047,0.55,2670.0,2669.8,3.74551]
[1739750918426,0.59682052,2670.0,2669.8,3.74551]
[1739750918761,0.55,2670.0,2669.8,3.74551]
[1739750920590,0.5968205,2670.1,2669.6,3.74577]
[1739750920854,0.7521,2669.9,2669.2,3.74636]
[1739750921160,0.55,2669.7,2669.2,3.74636]
[1739750921357,0.04682711,2669.6,2669.2,7.49272]
[1739750921651,0.279,2669.5,2669.2,3.74636]
[1739750921853,0.279,2669.5,2669.4,3.74616]
[1739750922821,1.6479,2669.5,2669.2,3.74632]
[1739750923844,1.6479,2669.5,2668.8,4.54704]
[1739750923845,1.6479,2669.5,2669.3,7.4926]
[1739750924054,1.6479,2669.5,2669.3,3.7463]
[1739750924824,0.55,2669.4,2668.9,3.74677]
[1739750925025,0.55,2669.2,2668.9,3.74677]
[1739750925535,0.11625073,2669.1,2668.9,3.74677]
[1739750925741,0.16308461,2669.1,2668.9,3.74677]
[1739750925928,0.98198461,2669.1,2668.9,3.74677]
[1739750926128,0.98198461,2669.1,2668.7,3.74706]
[1739750926329,0.98198461,2669.1,2668.8,3.74693]
[1739750927565,0.55,2669.0,2668.7,3.74705]
[1739750927773,0.04683612,2668.9,2668.7,3.74705]
[1739750928265,0.55,2669.0,2668.7,3.74705]
[1739750928761,0.11625073,2668.9,2668.7,7.49411]
[1739750928930,0.55,2669.0,2668.7,3.74705]
[1739750929227,0.66625073,2668.9,2668.8,3.747]
[1739750929642,0.55,2668.9,2668.8,3.747]
[1739750930046,0.66209892,2668.9,2668.8,3.747]
[1739750931268,0.66209892,2668.9,2668.7,3.74712]
[1739750932051,0.66209892,2668.9,2668.7,7.49417]
[1739750932254,0.66209892,2668.9,2668.7,3.74705]
[1739750932475,0.11209892,2668.9,2668.8,3.747]
[1739750932632,0.28,2668.9,2668.8,3.747]
[1739750933842,0.55,2669.3,2669.2,3.74644]
[1739750934053,5.34,2669.6,2669.5,3.74601]
[1739750934253,0.8189,2670.1,2669.9,3.74545]
[1739750934458,0.28,2670.0,2669.9,3.74545]
[1739750934842,0.83,2670.0,2669.9,3.74545]
[1739750935049,0.28,2670.0,2669.8,0.7503]
[1739750935294,0.28,2670.0,2669.9,3.74545]
[1739750935591,0.28,2670.0,2669.9,6.74545]
[1739750935790,0.28,2670.0,2669.9,11.03578232]
[1739750936386,0.8189,2670.8,2670.6,3.74437]
[1739750936589,0.751,2671.1,2670.9,3.74394]
[1739750936765,0.28,2671.0,2670.9,3.74394]
[1739750937158,0.83,2671.0,2670.7,3.74424]
[1739750937365,0.83,2671.0,2670.8,3.7441]
[1739750938495,0.83,2671.0,2670.9,3.74405]
[1739750939110,0.83,2671.0,2670.8,3.74419]
[1739750939614,0.83,2671.0,2670.7,3.74424]
[1739750939790,0.83,2671.0,2670.9,3.74405]
[1739750940176,0.83,2671.0,2670.7,3.74424]
[1739750940497,0.83,2671.0,2670.8,3.74414]
[1739750941303,0.83,2671.0,2670.9,3.74405]
[1739750941505,0.55,2671.0,2670.9,3.74405]
[1739750941667,0.279,2671.0,2670.9,0.748824]
[1739750941868,0.279,2671.0,2670.9,3.74393]
[1739750942305,0.39122116,2671.0,2670.9,3.74405]
[1739750942974,0.11222116,2671.0,2670.9,4.50855]
[1739750943187,0.87437537,2671.4,2671.3,3.74349]
[1739750943393,1.26253288,2671.4,2671.2,3.74356]
[1739750943589,1.26253288,2671.4,2671.3,3.74349]
[1739750944905,0.98353288,2671.4,2671.3,3.74349]
[1739750945110,1.26253288,2671.4,2671.3,3.74349]
[1739750946312,1.26253288,2671.4,2671.3,4.50799]
[1739750946498,0.10915751,2671.4,2671.3,8.333145]
[1739750946702,0.279,2671.5,2671.4,6.74335]
[1739750947682,0.55,2672.0,2671.5,3.74313]
[1739750947888,0.279,2671.9,2671.3,4.589655]
[1739750948087,0.279,2671.9,2671.6,3.74306]
[1739750948323,0.11017367,2671.8,2671.6,3.74306]
[1739750948499,0.279,2671.9,2671.6,3.74306]
[1739750948696,0.279,2671.9,2671.4,7.48657]
[1739750948900,0.279,2671.9,2671.5,3.74313]
[1739750948901,0.11022948,2671.8,2671.5,3.74313]
[1739750949303,0.279,2671.9,2671.5,3.74313]
[1739750949610,0.11022948,2671.8,2671.5,3.74313]
[1739750950136,0.279,2671.9,2671.5,3.74313]
[1739750950338,0.279,2671.9,2671.4,3.74322]
[1739750950641,0.11022948,2671.8,2671.5,3.7432]
[1739750951061,0.279,2671.9,2671.5,3.7432]
[1739750951356,0.279,2671.9,2671.6,3.74298]
[1739750952362,0.279,2671.9,2671.7,3.7429]
[1739750952541,0.279,2671.9,2671.6,3.74306]
[1739750953143,0.279,2671.9,2671.4,3.74326]
[1739750953353,1.39738693,2671.8,2671.3,6.74348]
[1739750953652,0.11038014,2671.7,2671.4,3.74325]
[1739750953823,1.39738693,2671.8,2671.4,7.48651]
[1739750954028,0.11038014,2671.6,2671.4,3.74325]
[1739750954252,1.39738693,2671.8,2671.4,3.74325]
[1739750954470,0.11038014,2671.5,2671.4,3.74325]
[1739750954772,1.39738693,2671.8,2671.4,3.74325]
[1739750954936,1.39738693,2671.8,2671.1,0.7571]
[1739750954937,1.39738693,2671.8,2671.5,3.7432]
[1739750955141,0.11038014,2671.7,2671.5,3.7432]
[1739750955354,1.3506,2671.8,2671.5,3.7432]
[1739750955682,0.11038014,2671.7,2671.5,3.7432]
[1739750955873,0.55,2671.8,2671.1,0.7571]
[1739750956079,0.55,2671.8,2671.5,3.74318]
[1739750956281,0.11025738,2671.7,2671.3,3.74336]
[1739750956572,0.55,2671.5,2670.7,4.50133]
[1739750956743,0.55,2671.3,2670.7,0.7571]
[1739750956939,0.55,2671.3,2670.8,3.74413]
[1739750957144,0.55,2671.1,2670.5,3.74452]
[1739750957370,0.279,2671.0,2670.7,3.74426]
[1739750957853,0.279,2671.0,2670.8,3.74412]